[Event "Titled Tuesday Blitz November 22 Late 2022"]
[White "Manelyuk, Daniil"]
[Black "Krzywda, Andrzej"]
[WhiteFideId "44173920"]
[BlackFideId "1114565"]
[WhiteElo "2209"]
[BlackElo "2149"]
[Result "1-0"]
[Round "05"]
[TimeControl "180+1"]
[Date "2022.11.23"]
[WhiteClock "0:00:06"]
[BlackClock "0:00:11"]

1. e4 {[%clk 0:03:00]}  c5 {[%clk 0:02:54]} 2. Nf3 {[%clk 0:03:00]}  d6 {[%clk 0:02:53]} 3. d4 {[%clk 0:02:59]}  cxd4 {[%clk 0:02:54]} 4. Nxd4 {[%clk 0:03:00]}  Nf6 {[%clk 0:02:54]} 5. Nc3 {[%clk 0:03:00]}  g6 {[%clk 0:02:55]} 6. f3 {[%clk 0:03:01]}  Nc6 {[%clk 0:02:52]} 7. Be3 {[%clk 0:03:01]}  h5 {[%clk 0:02:52]} 8. Qd2 {[%clk 0:03:00]}  Nxd4 {[%clk 0:02:52]} 9. Bxd4 {[%clk 0:03:00]}  Bh6 {[%clk 0:02:52]} 10. Bb5+ {[%clk 0:02:41]}  Kf8 {[%clk 0:02:46]} 11. Qe2 {[%clk 0:02:38]}  e5 {[%clk 0:02:36]} 12. Bf2 {[%clk 0:02:33]}  Be6 {[%clk 0:02:35]} 13. O-O {[%clk 0:02:32]}  Qc7 {[%clk 0:02:17]} 14. Rfd1 {[%clk 0:02:25]}  Kg7 {[%clk 0:02:13]} 15. a4 {[%clk 0:02:07]}  a6 {[%clk 0:02:11]} 16. Bd3 {[%clk 0:02:06]}  Bf4 {[%clk 0:01:57]} 17. g3 {[%clk 0:01:59]}  Bg5 {[%clk 0:01:56]} 18. h4 {[%clk 0:01:56]}  Bh6 {[%clk 0:01:55]} 19. a5 {[%clk 0:01:56]}  Rac8 {[%clk 0:01:53]} 20. Bb6 {[%clk 0:01:54]}  Qc6 {[%clk 0:01:48]} 21. Kh2 {[%clk 0:01:52]}  Rhe8 {[%clk 0:01:44]} 22. Bf2 {[%clk 0:01:23]}  Kh7 {[%clk 0:01:38]} 23. Na4 {[%clk 0:01:15]}  d5 {[%clk 0:01:17]} 24. Nc3 {[%clk 0:01:01]}  dxe4 {[%clk 0:01:12]} 25. Nxe4 {[%clk 0:01:00]}  Nxe4 {[%clk 0:01:10]} 26. Bxe4 {[%clk 0:01:00]}  Qc7 {[%clk 0:01:09]} 27. Bb6 {[%clk 0:00:58]}  Qe7 {[%clk 0:01:09]} 28. Bd3 {[%clk 0:00:42]}  Bd5 {[%clk 0:01:07]} 29. Bxg6+ {[%clk 0:00:41]}  fxg6 {[%clk 0:01:04]} 30. Rxd5 {[%clk 0:00:41]}  Qf7 {[%clk 0:00:37]} 31. Rad1 {[%clk 0:00:39]}  Kg8 {[%clk 0:00:31]} 32. Qe4 {[%clk 0:00:34]}  Qf5 {[%clk 0:00:27]} 33. c3 {[%clk 0:00:30]}  Rf8 {[%clk 0:00:24]} 34. Rd7 {[%clk 0:00:24]}  Qxe4 {[%clk 0:00:14]} 35. fxe4 {[%clk 0:00:23]}  Rf7 {[%clk 0:00:06]} 36. Rxf7 {[%clk 0:00:22]}  Kxf7 {[%clk 0:00:07]} 37. Rd7+ {[%clk 0:00:22]}  Ke6 {[%clk 0:00:08]} 38. Rxb7 {[%clk 0:00:23]}  Bc1 {[%clk 0:00:05]} 39. Bf2 {[%clk 0:00:08]}  Rc6 {[%clk 0:00:04]} 40. Rb6 {[%clk 0:00:07]}  Kd7 {[%clk 0:00:04]} 41. Rb7+ {[%clk 0:00:03]}  Kd6 {[%clk 0:00:03]} 42. Rb4 {[%clk 0:00:02]}  Ke6 {[%clk 0:00:02]} 43. Rb6 {[%clk 0:00:03]}  Kd6 {[%clk 0:00:02]} 44. b3 {[%clk 0:00:03]}  Kc7 {[%clk 0:00:02]} 45. Rb4 {[%clk 0:00:03]}  Bd2 {[%clk 0:00:02]} 46. Rb6 {[%clk 0:00:02]}  Bxc3 {[%clk 0:00:01]} 47. Rxc6+ {[%clk 0:00:02]}  Kxc6 {[%clk 0:00:02]} 48. Bb6 {[%clk 0:00:03]}  Kb5 {[%clk 0:00:02]} 49. Bc7 {[%clk 0:00:02]}  Kc6 {[%clk 0:00:02]} 50. Bd8 {[%clk 0:00:02]}  Kb5 {[%clk 0:00:03]} 51. Bc7 {[%clk 0:00:02]}  Kc6 {[%clk 0:00:03]} 52. Bb8 {[%clk 0:00:02]}  Kb5 {[%clk 0:00:03]} 53. Kg2 {[%clk 0:00:02]}  Kxa5 {[%clk 0:00:03]} 54. Bd6 {[%clk 0:00:02]}  Kb5 {[%clk 0:00:03]} 55. Kf3 {[%clk 0:00:03]}  a5 {[%clk 0:00:03]} 56. Ke2 {[%clk 0:00:03]}  a4 {[%clk 0:00:03]} 57. bxa4+ {[%clk 0:00:03]}  Kxa4 {[%clk 0:00:04]} 58. Kd3 {[%clk 0:00:03]}  Bd4 {[%clk 0:00:04]} 59. Kc4 {[%clk 0:00:03]}  Ka5 {[%clk 0:00:05]} 60. Kd5 {[%clk 0:00:03]}  Bf2 {[%clk 0:00:05]} 61. Bxe5 {[%clk 0:00:03]}  Kb6 {[%clk 0:00:06]} 62. Ke6 {[%clk 0:00:04]}  Kc6 {[%clk 0:00:06]} 63. Kf7 {[%clk 0:00:04]}  Kd7 {[%clk 0:00:05]} 64. Kxg6 {[%clk 0:00:04]}  Ke6 {[%clk 0:00:06]} 65. Bf4 {[%clk 0:00:05]}  Bd4 {[%clk 0:00:05]} 66. Kxh5 {[%clk 0:00:05]}  Kf6 {[%clk 0:00:06]} 67. Kg4 {[%clk 0:00:05]}  Kg6 {[%clk 0:00:06]} 68. e5 {[%clk 0:00:05]}  Kf7 {[%clk 0:00:06]} 69. h5 {[%clk 0:00:06]}  Ke6 {[%clk 0:00:06]} 70. Kg5 {[%clk 0:00:06]}  Kf7 {[%clk 0:00:07]} 71. Kf5 {[%clk 0:00:07]}  Kg7 {[%clk 0:00:08]} 72. g4 {[%clk 0:00:07]}  Bf2 {[%clk 0:00:07]} 73. g5 {[%clk 0:00:07]}  Bh4 {[%clk 0:00:08]} 74. h6+ {[%clk 0:00:07]}  Kh7 {[%clk 0:00:08]} 75. Kf6 {[%clk 0:00:07]}  Kg8 {[%clk 0:00:09]} 76. e6 {[%clk 0:00:07]}  Kf8 {[%clk 0:00:07]} 77. e7+ {[%clk 0:00:06]}  Ke8 {[%clk 0:00:07]} 78. h7 {[%clk 0:00:06]}  Bxg5+ {[%clk 0:00:07]} 79. Bxg5 {[%clk 0:00:06]}  Kd7 {[%clk 0:00:08]} 80. h8=Q {[%clk 0:00:06]}  Kd6 {[%clk 0:00:09]} 81. e8=Q {[%clk 0:00:06]}  Kc7 {[%clk 0:00:10]} 82. Qe6 {[%clk 0:00:06]}  Kb7 {[%clk 0:00:11]} 83. Qg7+ {[%clk 0:00:06]}  Ka8 {[%clk 0:00:11]} 84. Qeg8# {[%clk 0:00:06]} 1-0


[Site "https://www.chess.com"]

[Event "Titled Tuesday Blitz November 22 Late 2022"]
[White "Melikyan, Gnel"]
[Black "Gadimbayli, Abdulla"]
[WhiteFideId "54109990"]
[BlackFideId "13404938"]
[WhiteElo "2138"]
[BlackElo "2399"]
[Result "0-1"]
[Round "05"]
[TimeControl "180+1"]
[Date "2022.11.23"]
[WhiteClock "0:00:06"]
[BlackClock "0:00:26"]

1. e4 {[%clk 0:02:57]}  e5 {[%clk 0:02:59]} 2. Nf3 {[%clk 0:02:57]}  d5 {[%clk 0:02:59]} 3. exd5 {[%clk 0:02:56]}  e4 {[%clk 0:03:00]} 4. Qe2 {[%clk 0:02:56]}  Nf6 {[%clk 0:03:00]} 5. Nc3 {[%clk 0:02:56]}  Be7 {[%clk 0:03:00]} 6. Nxe4 {[%clk 0:02:56]}  O-O {[%clk 0:03:01]} 7. d3 {[%clk 0:02:54]}  Nxd5 {[%clk 0:02:59]} 8. Qd1 {[%clk 0:02:52]}  Re8 {[%clk 0:02:58]} 9. Be2 {[%clk 0:02:53]}  f5 {[%clk 0:02:58]} 10. Nc3 {[%clk 0:02:53]}  Nxc3 {[%clk 0:02:59]} 11. bxc3 {[%clk 0:02:53]}  Bf6 {[%clk 0:03:00]} 12. d4 {[%clk 0:02:49]}  Qe7 {[%clk 0:02:59]} 13. Be3 {[%clk 0:02:34]}  Kh8 {[%clk 0:02:59]} 14. g3 {[%clk 0:02:28]}  Nc6 {[%clk 0:02:57]} 15. O-O {[%clk 0:02:28]}  f4 {[%clk 0:02:57]} 16. gxf4 {[%clk 0:02:28]}  Bh3 {[%clk 0:02:42]} 17. Ne5 {[%clk 0:02:21]}  Bxf1 {[%clk 0:02:14]} 18. Qxf1 {[%clk 0:02:22]}  Rf8 {[%clk 0:02:09]} 19. Qh3 {[%clk 0:02:17]}  Nxe5 {[%clk 0:02:07]} 20. dxe5 {[%clk 0:02:16]}  Bh4 {[%clk 0:02:06]} 21. Bd3 {[%clk 0:02:02]}  Rad8 {[%clk 0:01:39]} 22. f5 {[%clk 0:02:00]}  Bg5 {[%clk 0:01:37]} 23. f4 {[%clk 0:01:40]}  Bh6 {[%clk 0:01:38]} 24. f6 {[%clk 0:01:37]}  Qf7 {[%clk 0:01:19]} 25. Kh1 {[%clk 0:01:34]}  gxf6 {[%clk 0:00:53]} 26. e6 {[%clk 0:01:26]}  Qe8 {[%clk 0:00:49]} 27. Qxh6 {[%clk 0:01:24]}  Rxd3 {[%clk 0:00:45]} 28. cxd3 {[%clk 0:01:23]}  Qc6+ {[%clk 0:00:45]} 29. Kg1 {[%clk 0:01:15]}  Rg8+ {[%clk 0:00:46]} 30. Kf2 {[%clk 0:00:13]}  Rg2+ {[%clk 0:00:46]} 31. Ke1 {[%clk 0:00:13]}  Qxe6 {[%clk 0:00:46]} 32. f5 {[%clk 0:00:12]}  Qxf5 {[%clk 0:00:42]} 33. Rd1 {[%clk 0:00:08]}  Qf3 {[%clk 0:00:39]} 34. Rd2 {[%clk 0:00:06]}  Rg6 {[%clk 0:00:33]} 35. Qf8+ {[%clk 0:00:04]}  Rg8 {[%clk 0:00:33]} 36. Qe7 {[%clk 0:00:04]}  Qh1+ {[%clk 0:00:32]} 37. Ke2 {[%clk 0:00:04]}  Qxh2+ {[%clk 0:00:29]} 38. Bf2 {[%clk 0:00:05]}  Qh5+ {[%clk 0:00:29]} 39. Ke1 {[%clk 0:00:05]}  Re8 {[%clk 0:00:29]} 40. Re2 {[%clk 0:00:05]}  Rxe7 {[%clk 0:00:29]} 41. Rxe7 {[%clk 0:00:06]}  Qh1+ {[%clk 0:00:29]} 42. Ke2 {[%clk 0:00:06]}  Qh5+ {[%clk 0:00:29]} 43. Ke1 {[%clk 0:00:06]}  c5 {[%clk 0:00:27]} 44. Rxb7 {[%clk 0:00:06]}  Qh1+ {[%clk 0:00:26]} 0-1


[Site "https://www.chess.com"]

[Event "Titled Tuesday Blitz November 22 Late 2022"]
[White "Melkumyan, Hrant"]
[Black "Popilski, Gil"]
[WhiteFideId "13302485"]
[BlackFideId "2809060"]
[WhiteElo "2604"]
[BlackElo "2537"]
[Result "1-0"]
[Round "05"]
[TimeControl "180+1"]
[Date "2022.11.22"]
[WhiteClock "0:00:14"]
[BlackClock "0:00:14"]

1. d4 {[%clk 0:02:59]}  Nf6 {[%clk 0:02:59]} 2. c4 {[%clk 0:02:58]}  e6 {[%clk 0:02:59]} 3. Bf4 {[%clk 0:02:59]}  d5 {[%clk 0:02:59]} 4. e3 {[%clk 0:02:56]}  c5 {[%clk 0:02:56]} 5. dxc5 {[%clk 0:02:49]}  Bxc5 {[%clk 0:02:54]} 6. Nc3 {[%clk 0:02:50]}  O-O {[%clk 0:02:54]} 7. Nf3 {[%clk 0:02:50]}  Nc6 {[%clk 0:02:52]} 8. a3 {[%clk 0:02:48]}  Re8 {[%clk 0:02:46]} 9. Be2 {[%clk 0:02:39]}  h6 {[%clk 0:02:30]} 10. b4 {[%clk 0:02:39]}  Bf8 {[%clk 0:02:25]} 11. cxd5 {[%clk 0:02:38]}  Nxd5 {[%clk 0:02:22]} 12. Nxd5 {[%clk 0:02:37]}  exd5 {[%clk 0:02:23]} 13. O-O {[%clk 0:02:36]}  a5 {[%clk 0:02:22]} 14. b5 {[%clk 0:02:36]}  Na7 {[%clk 0:02:12]} 15. Qb3 {[%clk 0:02:19]}  Bg4 {[%clk 0:02:04]} 16. Rfd1 {[%clk 0:02:19]}  Qf6 {[%clk 0:01:48]} 17. Qxd5 {[%clk 0:02:09]}  Nc8 {[%clk 0:01:38]} 18. Qxb7 {[%clk 0:02:02]}  Nd6 {[%clk 0:01:33]} 19. Qd5 {[%clk 0:02:01]}  Ne4 {[%clk 0:01:30]} 20. Be5 {[%clk 0:01:37]}  Qf5 {[%clk 0:01:29]} 21. Bb2 {[%clk 0:01:16]}  Qh7 {[%clk 0:01:16]} 22. Ng5 {[%clk 0:01:05]}  hxg5 {[%clk 0:01:08]} 23. Bxg4 {[%clk 0:01:05]}  Qh4 {[%clk 0:00:57]} 24. Qf5 {[%clk 0:00:48]}  Nxf2 {[%clk 0:00:54]} 25. Qxf2 {[%clk 0:00:39]}  Qxg4 {[%clk 0:00:53]} 26. a4 {[%clk 0:00:34]}  Bc5 {[%clk 0:00:50]} 27. Bd4 {[%clk 0:00:35]}  Rad8 {[%clk 0:00:49]} 28. h3 {[%clk 0:00:34]}  Bxd4 {[%clk 0:00:35]} 29. hxg4 {[%clk 0:00:15]}  Bxe3 {[%clk 0:00:34]} 30. Rxd8 {[%clk 0:00:15]}  Bxf2+ {[%clk 0:00:34]} 31. Kxf2 {[%clk 0:00:16]}  Rxd8 {[%clk 0:00:35]} 32. Ke3 {[%clk 0:00:17]}  g6 {[%clk 0:00:27]} 33. Rb1 {[%clk 0:00:15]}  f5 {[%clk 0:00:24]} 34. b6 {[%clk 0:00:15]}  Kf7 {[%clk 0:00:21]} 35. b7 {[%clk 0:00:15]}  Rb8 {[%clk 0:00:22]} 36. Kd4 {[%clk 0:00:16]}  Ke6 {[%clk 0:00:22]} 37. Kc5 {[%clk 0:00:16]}  Kd7 {[%clk 0:00:20]} 38. Rb6 {[%clk 0:00:15]}  Kc7 {[%clk 0:00:18]} 39. Rxg6 {[%clk 0:00:14]}  fxg4 {[%clk 0:00:14]} 40. Rg7+ {[%clk 0:00:14]} 1-0


[Site "https://www.chess.com"]

[Event "Titled Tuesday Blitz November 22 Late 2022"]
[White "Mendonca, Mateus Nakajo"]
[Black "Milikow, Yoav"]
[WhiteFideId "2110954"]
[BlackFideId "2822237"]
[WhiteElo "2310"]
[BlackElo "2341"]
[Result "0-1"]
[Round "05"]
[TimeControl "180+1"]
[Date "2022.11.23"]
[WhiteClock "0:00:03"]
[BlackClock "0:00:07"]

1. Nf3 {[%clk 0:03:00]}  Nf6 {[%clk 0:02:58]} 2. g3 {[%clk 0:03:00]}  d5 {[%clk 0:02:57]} 3. d4 {[%clk 0:02:57]}  Bf5 {[%clk 0:02:52]} 4. c4 {[%clk 0:02:56]}  e6 {[%clk 0:02:52]} 5. Bg2 {[%clk 0:02:53]}  c6 {[%clk 0:02:50]} 6. O-O {[%clk 0:02:47]}  Nbd7 {[%clk 0:02:49]} 7. Nbd2 {[%clk 0:02:34]}  h6 {[%clk 0:02:38]} 8. b3 {[%clk 0:02:21]}  Be7 {[%clk 0:02:31]} 9. Bb2 {[%clk 0:02:18]}  O-O {[%clk 0:02:31]} 10. Ne5 {[%clk 0:02:17]}  Bh7 {[%clk 0:02:15]} 11. Nxd7 {[%clk 0:01:55]}  Qxd7 {[%clk 0:02:08]} 12. c5 {[%clk 0:01:56]}  Qc7 {[%clk 0:01:57]} 13. b4 {[%clk 0:01:46]}  Rfe8 {[%clk 0:01:53]} 14. a4 {[%clk 0:01:39]}  Bf8 {[%clk 0:01:29]} 15. Qb3 {[%clk 0:01:37]}  a5 {[%clk 0:01:16]} 16. b5 {[%clk 0:01:36]}  e5 {[%clk 0:01:16]} 17. e3 {[%clk 0:01:24]}  exd4 {[%clk 0:00:58]} 18. Bxd4 {[%clk 0:01:23]}  Nd7 {[%clk 0:00:55]} 19. Rfc1 {[%clk 0:01:17]}  Ne5 {[%clk 0:00:53]} 20. Bf1 {[%clk 0:01:10]}  Qd7 {[%clk 0:00:45]} 21. Bxe5 {[%clk 0:01:02]}  Rxe5 {[%clk 0:00:43]} 22. Bd3 {[%clk 0:00:57]}  Be4 {[%clk 0:00:26]} 23. Rab1 {[%clk 0:00:22]}  Qh3 {[%clk 0:00:19]} 24. Bf1 {[%clk 0:00:20]}  Qe6 {[%clk 0:00:12]} 25. Nxe4 {[%clk 0:00:20]}  Rxe4 {[%clk 0:00:12]} 26. bxc6 {[%clk 0:00:20]}  bxc6 {[%clk 0:00:13]} 27. Bd3 {[%clk 0:00:16]}  Rb4 {[%clk 0:00:13]} 28. Qc2 {[%clk 0:00:16]}  Rab8 {[%clk 0:00:13]} 29. Rxb4 {[%clk 0:00:15]}  Rxb4 {[%clk 0:00:13]} 30. Rb1 {[%clk 0:00:11]}  Rxb1+ {[%clk 0:00:10]} 31. Qxb1 {[%clk 0:00:12]}  Bxc5 {[%clk 0:00:11]} 32. Qb8+ {[%clk 0:00:12]}  Bf8 {[%clk 0:00:11]} 33. Qd8 {[%clk 0:00:12]}  c5 {[%clk 0:00:04]} 34. Qxa5 {[%clk 0:00:11]}  c4 {[%clk 0:00:05]} 35. Bc2 {[%clk 0:00:10]}  Qe5 {[%clk 0:00:05]} 36. Qd2 {[%clk 0:00:08]}  g6 {[%clk 0:00:04]} 37. a5 {[%clk 0:00:06]}  Qb2 {[%clk 0:00:04]} 38. Kg2 {[%clk 0:00:06]}  c3 {[%clk 0:00:04]} 39. Qd3 {[%clk 0:00:06]}  Qa3 {[%clk 0:00:04]} 40. a6 {[%clk 0:00:06]}  Qa5 {[%clk 0:00:04]} 41. Bb3 {[%clk 0:00:06]}  Kg7 {[%clk 0:00:03]} 42. Bxd5 {[%clk 0:00:06]}  c2 {[%clk 0:00:03]} 43. Qxc2 {[%clk 0:00:04]}  Qxd5+ {[%clk 0:00:04]} 44. e4 {[%clk 0:00:04]}  Qa8 {[%clk 0:00:04]} 45. Qc4 {[%clk 0:00:04]}  Be7 {[%clk 0:00:05]} 46. f3 {[%clk 0:00:04]}  Bf6 {[%clk 0:00:05]} 47. Qb5 {[%clk 0:00:05]}  Qa7 {[%clk 0:00:06]} 48. Qc6 {[%clk 0:00:04]}  Bd4 {[%clk 0:00:06]} 49. f4 {[%clk 0:00:04]}  Bg1 {[%clk 0:00:07]} 50. Kh3 {[%clk 0:00:03]}  h5 {[%clk 0:00:07]} 51. Qc3+ {[%clk 0:00:04]}  Bd4 {[%clk 0:00:07]} 52. Qa3 {[%clk 0:00:04]}  Qd7+ {[%clk 0:00:07]} 53. Kg2 {[%clk 0:00:03]}  Ba7 {[%clk 0:00:07]} 54. Qa4 {[%clk 0:00:03]}  Qxa4 {[%clk 0:00:07]} 0-1


[Site "https://www.chess.com"]

[Event "Titled Tuesday Blitz November 22 Late 2022"]
[White "Milchev, Nikolay"]
[Black "Oganian, Miran"]
[WhiteFideId "2906090"]
[BlackFideId "4122488"]
[WhiteElo "2449"]
[BlackElo "2323"]
[Result "0-1"]
[Round "05"]
[TimeControl "180+1"]
[Date "2022.11.23"]
[WhiteClock "0:01:17"]
[BlackClock "0:00:37"]

1. Nf3 {[%clk 0:03:00]}  d5 {[%clk 0:02:58]} 2. c4 {[%clk 0:03:01]}  e6 {[%clk 0:02:58]} 3. g3 {[%clk 0:03:01]}  Nf6 {[%clk 0:02:58]} 4. Bg2 {[%clk 0:03:02]}  d4 {[%clk 0:02:58]} 5. O-O {[%clk 0:03:02]}  c5 {[%clk 0:02:56]} 6. b4 {[%clk 0:03:02]}  Nc6 {[%clk 0:02:52]} 7. b5 {[%clk 0:03:02]}  Nb8 {[%clk 0:02:51]} 8. e3 {[%clk 0:03:02]}  Be7 {[%clk 0:02:49]} 9. Bb2 {[%clk 0:02:57]}  dxe3 {[%clk 0:02:47]} 10. dxe3 {[%clk 0:02:56]}  O-O {[%clk 0:02:45]} 11. Nbd2 {[%clk 0:02:54]}  Nbd7 {[%clk 0:02:41]} 12. Nb3 {[%clk 0:02:52]}  Qc7 {[%clk 0:02:35]} 13. a4 {[%clk 0:02:51]}  b6 {[%clk 0:02:31]} 14. Ne5 {[%clk 0:02:43]}  Bb7 {[%clk 0:02:30]} 15. Nc6 {[%clk 0:02:42]}  Bxc6 {[%clk 0:02:25]} 16. Bxc6 {[%clk 0:02:40]}  Rad8 {[%clk 0:02:24]} 17. Qc2 {[%clk 0:02:37]}  Ne5 {[%clk 0:02:10]} 18. Bg2 {[%clk 0:02:23]}  Nd3 {[%clk 0:02:07]} 19. Bc3 {[%clk 0:02:23]}  Nb4 {[%clk 0:02:07]} 20. Qb2 {[%clk 0:02:22]}  Rd3 {[%clk 0:02:04]} 21. Rfd1 {[%clk 0:02:18]}  Rfd8 {[%clk 0:02:03]} 22. Rxd3 {[%clk 0:02:18]}  Rxd3 {[%clk 0:02:04]} 23. Bf1 {[%clk 0:02:15]}  Rd7 {[%clk 0:02:03]} 24. a5 {[%clk 0:02:15]}  h6 {[%clk 0:01:57]} 25. axb6 {[%clk 0:02:15]}  axb6 {[%clk 0:01:58]} 26. Ra8+ {[%clk 0:02:11]}  Kh7 {[%clk 0:01:55]} 27. Be5 {[%clk 0:02:03]}  Qb7 {[%clk 0:01:52]} 28. Qb1+ {[%clk 0:01:52]}  Qe4 {[%clk 0:01:48]} 29. Qxe4+ {[%clk 0:01:40]}  Nxe4 {[%clk 0:01:49]} 30. Rb8 {[%clk 0:01:38]}  Rd1 {[%clk 0:01:44]} 31. Kg2 {[%clk 0:01:38]}  Rb1 {[%clk 0:01:44]} 32. Rxb6 {[%clk 0:01:36]}  Rxb3 {[%clk 0:01:43]} 33. Rb7 {[%clk 0:01:36]}  Bf6 {[%clk 0:01:41]} 34. Bxf6 {[%clk 0:01:36]}  Nxf6 {[%clk 0:01:42]} 35. Rxf7 {[%clk 0:01:35]}  Nd3 {[%clk 0:01:29]} 36. Rc7 {[%clk 0:01:34]}  Ne4 {[%clk 0:01:25]} 37. Bxd3 {[%clk 0:01:25]}  Rxd3 {[%clk 0:01:24]} 38. f3 {[%clk 0:01:25]}  Ng5 {[%clk 0:01:05]} 39. Rxc5 {[%clk 0:01:24]}  Rd2+ {[%clk 0:01:04]} 40. Kf1 {[%clk 0:01:22]}  Nxf3 {[%clk 0:01:03]} 41. b6 {[%clk 0:01:22]}  Nxh2+ {[%clk 0:00:59]} 42. Ke1 {[%clk 0:01:21]}  Nf3+ {[%clk 0:01:00]} 43. Kf1 {[%clk 0:01:22]}  Rd8 {[%clk 0:00:48]} 44. b7 {[%clk 0:01:18]}  Rb8 {[%clk 0:00:48]} 45. Rb5 {[%clk 0:01:19]}  Nd2+ {[%clk 0:00:47]} 46. Ke2 {[%clk 0:01:19]}  Nxc4 {[%clk 0:00:48]} 47. Kd3 {[%clk 0:01:17]}  Nd6 {[%clk 0:00:47]} 48. Rb6 {[%clk 0:01:17]}  Nxb7 {[%clk 0:00:47]} 49. Ke2 {[%clk 0:01:17]}  Kg8 {[%clk 0:00:46]} 50. Rxe6 {[%clk 0:01:17]}  Nc5 {[%clk 0:00:45]} 51. Rc6 {[%clk 0:01:16]}  Ne4 {[%clk 0:00:43]} 52. Kf3 {[%clk 0:01:16]}  Ng5+ {[%clk 0:00:43]} 53. Kf4 {[%clk 0:01:16]}  Rb4+ {[%clk 0:00:42]} 54. Kf5 {[%clk 0:01:17]}  Kh7 {[%clk 0:00:38]} 55. e4 {[%clk 0:01:17]}  Nxe4 {[%clk 0:00:37]} 0-1


[Site "https://www.chess.com"]

[Event "Titled Tuesday Blitz November 22 Late 2022"]
[White "Musovic, Armin"]
[Black "Rizzo, Tobias"]
[WhiteFideId "939935"]
[BlackFideId "30942691"]
[WhiteElo "2288"]
[BlackElo "2325"]
[Result "1-0"]
[Round "05"]
[TimeControl "180+1"]
[Date "2022.11.23"]
[WhiteClock "0:00:54"]
[BlackClock "0:00:05"]

1. e4 {[%clk 0:02:57]}  c5 {[%clk 0:02:59]} 2. c3 {[%clk 0:02:57]}  d5 {[%clk 0:02:59]} 3. exd5 {[%clk 0:02:57]}  Qxd5 {[%clk 0:03:00]} 4. Na3 {[%clk 0:02:58]}  Nc6 {[%clk 0:02:59]} 5. h3 {[%clk 0:02:58]}  e5 {[%clk 0:02:58]} 6. Nf3 {[%clk 0:02:58]}  a6 {[%clk 0:02:53]} 7. Bc4 {[%clk 0:02:57]}  Qd6 {[%clk 0:02:50]} 8. d4 {[%clk 0:02:43]}  cxd4 {[%clk 0:02:43]} 9. cxd4 {[%clk 0:02:38]}  Nxd4 {[%clk 0:02:40]} 10. O-O {[%clk 0:02:34]}  Be7 {[%clk 0:02:35]} 11. Nxd4 {[%clk 0:02:25]}  Qxd4 {[%clk 0:02:31]} 12. Qb3 {[%clk 0:02:26]}  Nf6 {[%clk 0:01:01]} 13. Be3 {[%clk 0:02:14]}  Qe4 {[%clk 0:00:48]} 14. Bxf7+ {[%clk 0:02:11]}  Kf8 {[%clk 0:00:47]} 15. Rfe1 {[%clk 0:02:03]}  Qf5 {[%clk 0:00:28]} 16. Rac1 {[%clk 0:01:38]}  b5 {[%clk 0:00:26]} 17. Bd5 {[%clk 0:01:31]}  Rb8 {[%clk 0:00:13]} 18. Ba7 {[%clk 0:01:29]}  Bb7 {[%clk 0:00:14]} 19. Bxb8 {[%clk 0:01:21]}  Bxd5 {[%clk 0:00:14]} 20. Qg3 {[%clk 0:01:11]}  Ne4 {[%clk 0:00:13]} 21. Qg4 {[%clk 0:01:11]}  Qxf2+ {[%clk 0:00:12]} 22. Kh2 {[%clk 0:01:11]}  Nf6 {[%clk 0:00:05]} 23. Rf1 {[%clk 0:01:11]}  Nxg4+ {[%clk 0:00:04]} 24. hxg4 {[%clk 0:01:12]}  Bh4 {[%clk 0:00:02]} 25. Rxf2+ {[%clk 0:01:09]}  Bxf2 {[%clk 0:00:03]} 26. Rf1 {[%clk 0:01:09]}  Ke7 {[%clk 0:00:03]} 27. Bxe5 {[%clk 0:01:08]}  Bc5 {[%clk 0:00:03]} 28. Bxg7 {[%clk 0:01:08]}  Rg8 {[%clk 0:00:03]} 29. Bf6+ {[%clk 0:01:08]}  Ke6 {[%clk 0:00:04]} 30. g5 {[%clk 0:01:09]}  Bxa3 {[%clk 0:00:03]} 31. bxa3 {[%clk 0:01:09]}  Bxa2 {[%clk 0:00:04]} 32. Re1+ {[%clk 0:01:10]}  Kd6 {[%clk 0:00:04]} 33. Re7 {[%clk 0:01:11]}  Bb1 {[%clk 0:00:03]} 34. Ra7 {[%clk 0:01:10]}  Kc5 {[%clk 0:00:01]} 35. Rxa6 {[%clk 0:01:11]}  Kc4 {[%clk 0:00:02]} 36. Kh3 {[%clk 0:01:08]}  Kb3 {[%clk 0:00:02]} 37. Kh4 {[%clk 0:01:08]}  Re8 {[%clk 0:00:01]} 38. Ra7 {[%clk 0:01:02]}  Bg6 {[%clk 0:00:01]} 39. Be7 {[%clk 0:01:00]}  Rc8 {[%clk 0:00:01]} 40. Bb4 {[%clk 0:00:59]}  Rc4+ {[%clk 0:00:01]} 41. Kg3 {[%clk 0:00:59]}  Rc3+ {[%clk 0:00:02]} 42. Bxc3 {[%clk 0:00:59]}  Kxc3 {[%clk 0:00:03]} 43. Kf4 {[%clk 0:00:59]}  Kb3 {[%clk 0:00:03]} 44. Ke5 {[%clk 0:01:00]}  Kc3 {[%clk 0:00:04]} 45. Kd5 {[%clk 0:01:00]}  Kb3 {[%clk 0:00:04]} 46. Kc5 {[%clk 0:01:00]}  Bd3 {[%clk 0:00:05]} 47. g3 {[%clk 0:01:00]}  Be2 {[%clk 0:00:04]} 48. Kd4 {[%clk 0:01:00]}  Bc4 {[%clk 0:00:04]} 49. a4 {[%clk 0:00:55]}  Ka3 {[%clk 0:00:05]} 50. axb5+ {[%clk 0:00:54]} 1-0


[Site "https://www.chess.com"]